[Event "Early-Titled-Tuesday-Blitz-August-29-2023"]
[Site "Chess.com"]
[Date "2023.08.29"]
[Round "9"]
[White "GianmarcoVaR"]
[Black "FGHSMN"]
[Result "0-1"]
[WhiteElo "2757"]
[BlackElo "2928"]
[TimeControl "180+1"]
[EndTime "9:44:24 PDT"]
[Termination "FGHSMN won by checkmate"]

1. e4 {[%clk 0:03:00.9]} 1... e5 {[%clk 0:02:29.3]} 2. Nf3 {[%clk 0:03:00.5]}
2... Nc6 {[%clk 0:02:28.3]} 3. Bc4 {[%clk 0:03:00]} 3... d6 {[%clk 0:02:26.9]}
4. O-O {[%clk 0:02:53.7]} 4... Be7 {[%clk 0:02:23.2]} 5. Nc3 {[%clk 0:02:52]}
5... Nf6 {[%clk 0:02:22.6]} 6. a3 {[%clk 0:02:43.6]} 6... O-O {[%clk 0:02:19.7]}
7. h3 {[%clk 0:02:38.7]} 7... Be6 {[%clk 0:02:18.7]} 8. d3 {[%clk 0:02:33.9]}
8... h6 {[%clk 0:02:16.5]} 9. Be3 {[%clk 0:02:31.7]} 9... d5 {[%clk 0:02:13.9]}
10. exd5 {[%clk 0:02:31.1]} 10... Nxd5 {[%clk 0:02:14.8]} 11. Nxd5 {[%clk
0:02:29.7]} 11... Bxd5 {[%clk 0:02:14.7]} 12. Bxd5 {[%clk 0:02:30]} 12... Qxd5
{[%clk 0:02:15.4]} 13. Nd2 {[%clk 0:02:24.3]} 13... Rad8 {[%clk 0:02:14.1]} 14.
Qf3 {[%clk 0:02:23.9]} 14... f5 {[%clk 0:02:05.8]} 15. Qxd5+ {[%clk 0:02:23.4]}
15... Rxd5 {[%clk 0:02:06.7]} 16. f3 {[%clk 0:02:06.9]} 16... Bc5 {[%clk
0:01:56.1]} 17. Rfe1 {[%clk 0:02:04.3]} 17... Nd4 {[%clk 0:01:37.7]} 18. Rac1
{[%clk 0:02:02.8]} 18... Rfd8 {[%clk 0:01:32]} 19. Kf1 {[%clk 0:02:01.4]} 19...
Nc6 {[%clk 0:01:23.1]} 20. Nc4 {[%clk 0:01:52.7]} 20... Bf8 {[%clk 0:01:17]} 21.
g4 {[%clk 0:01:40.9]} 21... R5d7 {[%clk 0:01:00.3]} 22. gxf5 {[%clk 0:01:32.2]}
22... Rf7 {[%clk 0:00:59.2]} 23. Ke2 {[%clk 0:01:20.7]} 23... Rxf5 {[%clk
0:00:57.9]} 24. Rg1 {[%clk 0:01:21]} 24... Rh5 {[%clk 0:00:49.2]} 25. Rg3 {[%clk
0:01:14.6]} 25... Bd6 {[%clk 0:00:49.8]} 26. Rcg1 {[%clk 0:01:09.8]} 26... Rd7
{[%clk 0:00:50.1]} 27. Kf1 {[%clk 0:00:42.7]} 27... Rf7 {[%clk 0:00:42.7]} 28.
Kg2 {[%clk 0:00:39.6]} 28... Ne7 {[%clk 0:00:42.5]} 29. Rg4 {[%clk 0:00:35.9]}
29... Nf5 {[%clk 0:00:42.1]} 30. Bf2 {[%clk 0:00:36.4]} 30... a6 {[%clk
0:00:35.2]} 31. Re1 {[%clk 0:00:35.1]} 31... Ne7 {[%clk 0:00:35.2]} 32. Bg3
{[%clk 0:00:32.1]} 32... Nc6 {[%clk 0:00:32.6]} 33. c3 {[%clk 0:00:21.1]} 33...
Rhf5 {[%clk 0:00:31.7]} 34. Nd2 {[%clk 0:00:21.4]} 34... h5 {[%clk 0:00:26.7]}
35. Rge4 {[%clk 0:00:18.8]} 35... Rg5 {[%clk 0:00:27]} 36. Kh2 {[%clk
0:00:11.3]} 36... Rg6 {[%clk 0:00:24.3]} 37. Bf2 {[%clk 0:00:06.9]} 37... Ne7
{[%clk 0:00:20.7]} 38. Rg1 {[%clk 0:00:06.5]} 38... Rxg1 {[%clk 0:00:19]} 39.
Bxg1 {[%clk 0:00:07.4]} 39... Nd5 {[%clk 0:00:19]} 40. Be3 {[%clk 0:00:05.4]}
40... Nf6 {[%clk 0:00:18.8]} 41. Rh4 {[%clk 0:00:02.9]} 41... e4+ {[%clk
0:00:18.8]} 42. Kg2 {[%clk 0:00:02.7]} 42... exd3 {[%clk 0:00:18.5]} 43. Rd4
{[%clk 0:00:03.3]} 43... Nd7 {[%clk 0:00:15.1]} 44. Rxd3 {[%clk 0:00:03.1]}
44... Ne5 {[%clk 0:00:15.6]} 45. Rd5 {[%clk 0:00:03.3]} 45... Rf6 {[%clk
0:00:13.4]} 46. Bd4 {[%clk 0:00:03.3]} 46... Rg6+ {[%clk 0:00:13.7]} 47. Kf1
{[%clk 0:00:02.3]} 47... Nd3 {[%clk 0:00:13.4]} 48. Bxg7 {[%clk 0:00:02.4]}
48... Nf4 {[%clk 0:00:12.8]} 49. Rxd6 {[%clk 0:00:01.9]} 49... Rxd6 {[%clk
0:00:12.1]} 50. Be5 {[%clk 0:00:01.7]} 50... Rxd2 {[%clk 0:00:12.4]} 51. Bxf4
{[%clk 0:00:02.4]} 51... Rxb2 {[%clk 0:00:13.3]} 52. Bxc7 {[%clk 0:00:03.1]}
52... Rb3 {[%clk 0:00:13.1]} 53. Bd6 {[%clk 0:00:02.2]} 53... Rxc3 {[%clk
0:00:13.4]} 54. Kg2 {[%clk 0:00:02.7]} 54... b5 {[%clk 0:00:13.5]} 55. Kg3
{[%clk 0:00:02.9]} 55... Kf7 {[%clk 0:00:14.1]} 56. Kh4 {[%clk 0:00:03.4]} 56...
Rxf3 {[%clk 0:00:13.5]} 57. Kxh5 {[%clk 0:00:02.6]} 57... Rxh3+ {[%clk
0:00:13.6]} 58. Kg4 {[%clk 0:00:03.4]} 58... Rd3 {[%clk 0:00:14.2]} 59. Bc5
{[%clk 0:00:03.3]} 59... Ke6 {[%clk 0:00:14.9]} 60. Kf4 {[%clk 0:00:03.7]} 60...
Kd5 {[%clk 0:00:15.7]} 61. Be7 {[%clk 0:00:04.1]} 61... Kc4 {[%clk 0:00:16.5]}
62. Ke4 {[%clk 0:00:04.3]} 62... Rd1 {[%clk 0:00:16.4]} 63. Bb4 {[%clk
0:00:01.8]} 63... Kb3 {[%clk 0:00:17]} 64. Ke3 {[%clk 0:00:02.1]} 64... Ra1
{[%clk 0:00:17.3]} 65. Kd3 {[%clk 0:00:02.1]} 65... Rxa3 {[%clk 0:00:17.9]} 66.
Bxa3 {[%clk 0:00:02.7]} 66... Kxa3 {[%clk 0:00:18.8]} 67. Kc2 {[%clk 0:00:03.3]}
67... b4 {[%clk 0:00:19.1]} 68. Kb1 {[%clk 0:00:03.7]} 68... Kb3 {[%clk
0:00:19.6]} 69. Ka1 {[%clk 0:00:04.6]} 69... Kc2 {[%clk 0:00:20.2]} 70. Ka2
{[%clk 0:00:04.8]} 70... b3+ {[%clk 0:00:20.9]} 71. Ka1 {[%clk 0:00:05.5]} 71...
b2+ {[%clk 0:00:21.4]} 72. Ka2 {[%clk 0:00:06.3]} 72... b1=Q+ {[%clk 0:00:22]}
73. Ka3 {[%clk 0:00:07.1]} 73... Qb3# {[%clk 0:00:22.8]} 0-1

[Event "Early-Titled-Tuesday-Blitz-August-29-2023"]
[Site "Chess.com"]
[Date "2023.08.29"]
[Round "9"]
[White "chess94cu"]
[Black "GMKrikor"]
[Result "0-1"]
[WhiteElo "2713"]
[BlackElo "2871"]
[TimeControl "180+1"]
[EndTime "9:44:26 PDT"]
[Termination "GMKrikor won by resignation"]

1. d4 {[%clk 0:02:59.4]} 1... Nf6 {[%clk 0:02:59.7]} 2. c4 {[%clk 0:02:59.6]}
2... g6 {[%clk 0:02:59.8]} 3. Nc3 {[%clk 0:02:59.2]} 3... d5 {[%clk 0:02:59.1]}
4. Nf3 {[%clk 0:02:53.4]} 4... Bg7 {[%clk 0:02:58.8]} 5. cxd5 {[%clk 0:02:54]}
5... Nxd5 {[%clk 0:02:59.7]} 6. e4 {[%clk 0:02:54.3]} 6... Nxc3 {[%clk
0:03:00.1]} 7. bxc3 {[%clk 0:02:55.2]} 7... c5 {[%clk 0:03:00.7]} 8. Rb1 {[%clk
0:02:49.3]} 8... O-O {[%clk 0:02:59.8]} 9. Be2 {[%clk 0:02:48.5]} 9... Qc7
{[%clk 0:03:00.5]} 10. O-O {[%clk 0:02:44.4]} 10... b6 {[%clk 0:03:01]} 11. Be3
{[%clk 0:02:41.9]} 11... Bb7 {[%clk 0:02:58.5]} 12. Bd3 {[%clk 0:02:41.2]} 12...
Nd7 {[%clk 0:02:52.8]} 13. Qe2 {[%clk 0:02:38.8]} 13... Rac8 {[%clk 0:02:49.7]}
14. Rbc1 {[%clk 0:02:37.3]} 14... e5 {[%clk 0:02:43.7]} 15. d5 {[%clk
0:02:33.5]} 15... c4 {[%clk 0:02:44.2]} 16. Bc2 {[%clk 0:02:28.6]} 16... Nc5
{[%clk 0:02:44.3]} 17. Qxc4 {[%clk 0:02:23.6]} 17... Ba6 {[%clk 0:02:39.3]} 18.
Qb4 {[%clk 0:02:23.5]} 18... Bxf1 {[%clk 0:02:35.9]} 19. Rxf1 {[%clk 0:02:24.4]}
19... Rfd8 {[%clk 0:02:32.8]} 20. c4 {[%clk 0:02:22.6]} 20... f6 {[%clk
0:02:30.7]} 21. Nd2 {[%clk 0:02:15.7]} 21... Bf8 {[%clk 0:02:30.3]} 22. Qb2
{[%clk 0:02:11.4]} 22... Nb7 {[%clk 0:02:25.6]} 23. Ba4 {[%clk 0:02:08.5]} 23...
Bc5 {[%clk 0:02:25.6]} 24. Qc3 {[%clk 0:01:45.8]} 24... Bxe3 {[%clk 0:02:22.8]}
25. Qxe3 {[%clk 0:01:45.3]} 25... Qc5 {[%clk 0:02:12.6]} 26. Qf3 {[%clk
0:01:44.6]} 26... Kg7 {[%clk 0:02:09.7]} 27. Bb5 {[%clk 0:01:40.8]} 27... Nd6
{[%clk 0:02:04.5]} 28. Bc6 {[%clk 0:01:32.4]} 28... Qd4 {[%clk 0:01:58.2]} 29.
Rd1 {[%clk 0:01:25]} 29... Nxc4 {[%clk 0:01:25.6]} 30. Nxc4 {[%clk 0:01:25.9]}
30... Qxc4 {[%clk 0:01:23.7]} 31. Re1 {[%clk 0:01:14.8]} 31... Rxc6 {[%clk
0:01:06.7]} 32. dxc6 {[%clk 0:01:15.7]} 32... Qxc6 {[%clk 0:01:07.6]} 33. h4
{[%clk 0:01:11.9]} 33... h5 {[%clk 0:01:04.6]} 34. Qa3 {[%clk 0:01:10.7]} 34...
Rd7 {[%clk 0:01:02.5]} 35. g3 {[%clk 0:01:05.9]} 35... Qc5 {[%clk 0:00:58.2]}
36. Qa4 {[%clk 0:01:05.6]} 36... Qc7 {[%clk 0:00:34.5]} 37. Kg2 {[%clk
0:00:56.5]} 37... Rd4 {[%clk 0:00:33.6]} 38. Qa3 {[%clk 0:00:50.6]} 38... a5
{[%clk 0:00:31.1]} 39. Re3 {[%clk 0:00:50.1]} 39... b5 {[%clk 0:00:27]} 40. Qb3
{[%clk 0:00:47.5]} 40... b4 {[%clk 0:00:25]} 41. Qe6 {[%clk 0:00:46.2]} 41...
Qb7 {[%clk 0:00:21.2]} 42. Rf3 {[%clk 0:00:43.9]} 42... Qf7 {[%clk 0:00:21.2]}
43. Qb6 {[%clk 0:00:39.2]} 43... a4 {[%clk 0:00:20.4]} 44. Qb5 {[%clk
0:00:29.7]} 44... a3 {[%clk 0:00:19.8]} 45. Qc6 {[%clk 0:00:24.2]} 45... Rc4
{[%clk 0:00:16.3]} 46. Qa8 {[%clk 0:00:23.8]} 46... Qd7 {[%clk 0:00:11.2]} 47.
Qa6 {[%clk 0:00:20.4]} 47... Rc6 {[%clk 0:00:08.7]} 48. Qb5 {[%clk 0:00:19.2]}
48... Qd6 {[%clk 0:00:09.1]} 49. Qb7+ {[%clk 0:00:18.7]} 49... Rc7 {[%clk
0:00:09.1]} 50. Qb8 {[%clk 0:00:18.7]} 50... Qe7 {[%clk 0:00:08]} 51. Qb5 {[%clk
0:00:17.8]} 51... Rb7 {[%clk 0:00:04.4]} 52. Qc6 {[%clk 0:00:16.8]} 52... b3
{[%clk 0:00:05]} 53. Rxb3 {[%clk 0:00:15.5]} 53... Rxb3 {[%clk 0:00:05.2]} 54.
axb3 {[%clk 0:00:16.4]} 54... Qa7 {[%clk 0:00:05.2]} 55. Qc1 {[%clk 0:00:04.4]}
55... a2 {[%clk 0:00:05.5]} 56. Qa1 {[%clk 0:00:05.2]} 56... Kf7 {[%clk
0:00:05.9]} 57. b4 {[%clk 0:00:05]} 57... Ke6 {[%clk 0:00:02.6]} 58. b5 {[%clk
0:00:05.4]} 58... Qa3 {[%clk 0:00:02.7]} 59. b6 {[%clk 0:00:05.2]} 59... Kd7
{[%clk 0:00:03.4]} 60. Qd1+ {[%clk 0:00:03.7]} 60... Kc6 {[%clk 0:00:03.8]} 61.
Qd5+ {[%clk 0:00:03.1]} 61... Kxb6 {[%clk 0:00:04]} 62. Qxe5 {[%clk 0:00:04]}
62... fxe5 {[%clk 0:00:03.9]} 0-1

[Event "Early-Titled-Tuesday-Blitz-August-29-2023"]
[Site "Chess.com"]
[Date "2023.08.29"]
[Round "9"]
[White "Kildepiotr"]
[Black "betta2004"]
[Result "1/2-1/2"]
[WhiteElo "2663"]
[BlackElo "2550"]
[TimeControl "180+1"]
[EndTime "9:44:29 PDT"]
[Termination "Game drawn - insufficient material"]

1. Nf3 {[%clk 0:02:57.3]} 1... g6 {[%clk 0:02:59.5]} 2. g3 {[%clk 0:02:55.9]}
2... Bg7 {[%clk 0:02:59.5]} 3. d4 {[%clk 0:02:56.6]} 3... c5 {[%clk 0:02:59.1]}
4. c3 {[%clk 0:02:56.7]} 4... cxd4 {[%clk 0:02:59.4]} 5. cxd4 {[%clk 0:02:57.1]}
5... Nf6 {[%clk 0:02:59.7]} 6. Nc3 {[%clk 0:02:57.2]} 6... O-O {[%clk
0:03:00.6]} 7. Bg2 {[%clk 0:02:57.1]} 7... d5 {[%clk 0:03:01.2]} 8. O-O {[%clk
0:02:57.2]} 8... Ne4 {[%clk 0:03:01.3]} 9. Qb3 {[%clk 0:02:56.7]} 9... Nxc3
{[%clk 0:03:00.4]} 10. bxc3 {[%clk 0:02:57.6]} 10... Nc6 {[%clk 0:03:00.8]} 11.
Nd2 {[%clk 0:02:57.6]} 11... Na5 {[%clk 0:03:00.7]} 12. Qb4 {[%clk 0:02:55]}
12... Be6 {[%clk 0:02:58.1]} 13. Ba3 {[%clk 0:02:49.7]} 13... Re8 {[%clk
0:02:57.1]} 14. e4 {[%clk 0:02:49.4]} 14... Rc8 {[%clk 0:02:55.5]} 15. e5 {[%clk
0:02:43.4]} 15... b6 {[%clk 0:02:52.6]} 16. Rfc1 {[%clk 0:02:37.9]} 16... Nc4
{[%clk 0:02:51.5]} 17. Nxc4 {[%clk 0:02:36]} 17... Rxc4 {[%clk 0:02:52.4]} 18.
Qb5 {[%clk 0:02:32]} 18... Bd7 {[%clk 0:02:50.9]} 19. Qxd5 {[%clk 0:02:30.8]}
19... Qc7 {[%clk 0:02:42.4]} 20. Bb2 {[%clk 0:02:17.4]} 20... Bh6 {[%clk
0:02:39.5]} 21. Rd1 {[%clk 0:02:10.4]} 21... Bg4 {[%clk 0:02:34.8]} 22. Bf3
{[%clk 0:01:59]} 22... Rd8 {[%clk 0:02:31.3]} 23. Qe4 {[%clk 0:01:58.9]} 23...
Bf5 {[%clk 0:02:30.7]} 24. Qh4 {[%clk 0:01:58.2]} 24... Bg7 {[%clk 0:02:25.7]}
25. a4 {[%clk 0:01:49]} 25... Bc2 {[%clk 0:02:20.4]} 26. Re1 {[%clk 0:01:44.2]}
26... Bxa4 {[%clk 0:02:14.1]} 27. Be2 {[%clk 0:01:38]} 27... Bb5 {[%clk
0:02:05.8]} 28. Bxc4 {[%clk 0:01:36.8]} 28... Bxc4 {[%clk 0:02:06.7]} 29. Ba3
{[%clk 0:01:33.7]} 29... Re8 {[%clk 0:02:00.2]} 30. Qe4 {[%clk 0:01:29]} 30...
e6 {[%clk 0:01:57.8]} 31. Bd6 {[%clk 0:01:28.5]} 31... Qd7 {[%clk 0:01:57.7]}
32. f3 {[%clk 0:01:24.9]} 32... Bd5 {[%clk 0:01:57.3]} 33. Qd3 {[%clk
0:01:24.7]} 33... Qc6 {[%clk 0:01:57.9]} 34. Kf2 {[%clk 0:01:22.3]} 34... a5
{[%clk 0:01:56.7]} 35. Reb1 {[%clk 0:01:19.7]} 35... Rc8 {[%clk 0:01:54.9]} 36.
Ra3 {[%clk 0:01:19.3]} 36... f6 {[%clk 0:01:42.7]} 37. Qb5 {[%clk 0:01:17.6]}
37... fxe5 {[%clk 0:01:39]} 38. Qxc6 {[%clk 0:01:11]} 38... Rxc6 {[%clk
0:01:37.2]} 39. dxe5 {[%clk 0:01:10.1]} 39... Bc4 {[%clk 0:01:32.1]} 40. f4
{[%clk 0:01:06.9]} 40... Bd3 {[%clk 0:01:27.7]} 41. Rd1 {[%clk 0:01:04.9]} 41...
Bc2 {[%clk 0:01:24.7]} 42. Rd2 {[%clk 0:01:04.8]} 42... Be4 {[%clk 0:01:24.4]}
43. Ke3 {[%clk 0:01:04.4]} 43... Bd5 {[%clk 0:01:24.6]} 44. Rd4 {[%clk
0:00:56.2]} 44... Kf7 {[%clk 0:01:21.2]} 45. Kd3 {[%clk 0:00:56.1]} 45... Bg2
{[%clk 0:01:15.8]} 46. c4 {[%clk 0:00:51.3]} 46... Bf1+ {[%clk 0:01:15.6]} 47.
Kc3 {[%clk 0:00:51.4]} 47... g5 {[%clk 0:01:04.4]} 48. fxg5 {[%clk 0:00:44.6]}
48... Kg6 {[%clk 0:01:04.4]} 49. h4 {[%clk 0:00:43.2]} 49... Kh5 {[%clk
0:00:56.8]} 50. Ra1 {[%clk 0:00:39.4]} 50... Bxc4 {[%clk 0:00:53.2]} 51. Rxc4
{[%clk 0:00:36.8]} 51... Rxd6 {[%clk 0:00:53.6]} 52. Re1 {[%clk 0:00:34]} 52...
Rd5 {[%clk 0:00:53.9]} 53. Rce4 {[%clk 0:00:32.4]} 53... b5 {[%clk 0:00:52.4]}
54. Kc2 {[%clk 0:00:30.2]} 54... Kg6 {[%clk 0:00:50.6]} 55. g4 {[%clk
0:00:29.6]} 55... b4 {[%clk 0:00:46.1]} 56. Kb3 {[%clk 0:00:28.6]} 56... Rd3+
{[%clk 0:00:45.5]} 57. Kc4 {[%clk 0:00:28.8]} 57... Rc3+ {[%clk 0:00:45.6]} 58.
Kb5 {[%clk 0:00:29.2]} 58... b3 {[%clk 0:00:44.7]} 59. Kxa5 {[%clk 0:00:26.9]}
59... Rh3 {[%clk 0:00:45.3]} 60. h5+ {[%clk 0:00:20.9]} 60... Kxg5 {[%clk
0:00:45.1]} 61. Kb4 {[%clk 0:00:21.1]} 61... Rg3 {[%clk 0:00:43.6]} 62. R1e3
{[%clk 0:00:19.4]} 62... Rxe3 {[%clk 0:00:42.3]} 63. Rxe3 {[%clk 0:00:20.3]}
63... Kxg4 {[%clk 0:00:43]} 64. Kxb3 {[%clk 0:00:19.3]} 64... Kf4 {[%clk
0:00:41.2]} 65. Rh3 {[%clk 0:00:19]} 65... Bxe5 {[%clk 0:00:39.8]} 66. Kc4
{[%clk 0:00:19.6]} 66... Kg4 {[%clk 0:00:40.2]} 67. Rh1 {[%clk 0:00:19.2]} 67...
Bf4 {[%clk 0:00:40.6]} 68. Kd3 {[%clk 0:00:19.2]} 68... Kf5 {[%clk 0:00:40]} 69.
Rf1 {[%clk 0:00:19]} 69... e5 {[%clk 0:00:40.7]} 70. Re1 {[%clk 0:00:19.1]}
70... Kg5 {[%clk 0:00:40.4]} 71. Rh1 {[%clk 0:00:19.3]} 71... Kf5 {[%clk
0:00:40.9]} 72. Ke2 {[%clk 0:00:18.8]} 72... Kg4 {[%clk 0:00:37.9]} 73. Kd3
{[%clk 0:00:18.2]} 73... Kf5 {[%clk 0:00:38]} 74. Rg1 {[%clk 0:00:18.2]} 74...
Bg5 {[%clk 0:00:34]} 75. Rg2 {[%clk 0:00:16.9]} 75... h6 {[%clk 0:00:30.2]} 76.
Rg1 {[%clk 0:00:16.7]} 76... Kf4 {[%clk 0:00:29.2]} 77. Rf1+ {[%clk 0:00:16.7]}
77... Kg4 {[%clk 0:00:29.5]} 78. Ke4 {[%clk 0:00:16.9]} 78... Kxh5 {[%clk
0:00:29.6]} 79. Kf5 {[%clk 0:00:16.7]} 79... Kh4 {[%clk 0:00:29.3]} 80. Rh1+
{[%clk 0:00:14.6]} 80... Kg3 {[%clk 0:00:29.7]} 81. Kxe5 {[%clk 0:00:15.2]}
81... Kg4 {[%clk 0:00:30]} 82. Ke4 {[%clk 0:00:15.1]} 82... Bh4 {[%clk
0:00:28.5]} 83. Rg1+ {[%clk 0:00:15.1]} 83... Bg3 {[%clk 0:00:29]} 84. Rh1
{[%clk 0:00:14.6]} 84... h5 {[%clk 0:00:29.6]} 85. Rxh5 {[%clk 0:00:14.7]} 85...
Kxh5 {[%clk 0:00:29.5]} 1/2-1/2

[Event "Early-Titled-Tuesday-Blitz-August-29-2023"]
[Site "Chess.com"]
[Date "2023.08.29"]
[Round "9"]
[White "LileKoridze"]
[Black "Alphafischer2019"]
[Result "1-0"]
[WhiteElo "2361"]
[BlackElo "2514"]
[TimeControl "180+1"]
[EndTime "9:44:31 PDT"]
[Termination "LileKoridze won by checkmate"]

1. d4 {[%clk 0:03:00.9]} 1... Nf6 {[%clk 0:02:59.9]} 2. c4 {[%clk 0:03:00.7]}
2... c5 {[%clk 0:02:57.2]} 3. d5 {[%clk 0:03:01]} 3... b5 {[%clk 0:02:57.7]} 4.
cxb5 {[%clk 0:03:01.3]} 4... a6 {[%clk 0:02:58.4]} 5. bxa6 {[%clk 0:03:01.5]}
5... Bxa6 {[%clk 0:02:59.1]} 6. Nc3 {[%clk 0:03:01.9]} 6... g6 {[%clk
0:02:59.4]} 7. e4 {[%clk 0:03:02]} 7... Bxf1 {[%clk 0:02:58.9]} 8. Kxf1 {[%clk
0:03:02.1]} 8... d6 {[%clk 0:02:59.5]} 9. Nf3 {[%clk 0:03:02.2]} 9... Bg7 {[%clk
0:02:59.7]} 10. g3 {[%clk 0:03:02.6]} 10... O-O {[%clk 0:03:00]} 11. Kg2 {[%clk
0:03:02.8]} 11... Nbd7 {[%clk 0:03:00.4]} 12. Qe2 {[%clk 0:03:02.2]} 12... Qb6
{[%clk 0:02:58.1]} 13. Nd2 {[%clk 0:02:58.9]} 13... Rfb8 {[%clk 0:02:55.1]} 14.
Nc4 {[%clk 0:02:43.8]} 14... Qa6 {[%clk 0:02:54.9]} 15. Re1 {[%clk 0:02:41.7]}
15... Rb4 {[%clk 0:02:38.4]} 16. Nd2 {[%clk 0:02:38.5]} 16... Ne5 {[%clk
0:02:29.5]} 17. a3 {[%clk 0:02:32.3]} 17... Rbb8 {[%clk 0:02:19.7]} 18. Qxa6
{[%clk 0:02:23.5]} 18... Rxa6 {[%clk 0:02:20.6]} 19. Re2 {[%clk 0:02:22.6]}
19... h5 {[%clk 0:02:11.5]} 20. f4 {[%clk 0:02:21.9]} 20... Nd3 {[%clk
0:02:11.1]} 21. Nc4 {[%clk 0:02:20.7]} 21... Nd7 {[%clk 0:01:54.4]} 22. Rd2
{[%clk 0:01:39.5]} 22... Nxc1 {[%clk 0:01:43.2]} 23. Rxc1 {[%clk 0:01:39.3]}
23... Nb6 {[%clk 0:01:36.6]} 24. Ne3 {[%clk 0:01:27.1]} 24... Na4 {[%clk
0:01:30.3]} 25. Nxa4 {[%clk 0:01:25.6]} 25... Rxa4 {[%clk 0:01:31.2]} 26. Rc4
{[%clk 0:01:22.9]} 26... Ra7 {[%clk 0:01:24.8]} 27. Rcc2 {[%clk 0:01:22.2]}
27... Bd4 {[%clk 0:01:15.3]} 28. Nc4 {[%clk 0:01:21.8]} 28... f6 {[%clk
0:01:10.2]} 29. Re2 {[%clk 0:01:07.9]} 29... Rab7 {[%clk 0:00:55.4]} 30. a4
{[%clk 0:01:00.9]} 30... Rb4 {[%clk 0:00:55.2]} 31. a5 {[%clk 0:01:01]} 31...
Ra4 {[%clk 0:00:53.3]} 32. e5 {[%clk 0:00:28]} 32... dxe5 {[%clk 0:00:20.1]} 33.
fxe5 {[%clk 0:00:28.1]} 33... Rbb4 {[%clk 0:00:20.7]} 34. d6 {[%clk 0:00:17.6]}
34... Rb8 {[%clk 0:00:18.8]} 35. dxe7 {[%clk 0:00:13.3]} 35... fxe5 {[%clk
0:00:14.3]} 36. Nd6 {[%clk 0:00:12.5]} 36... Rxa5 {[%clk 0:00:10.7]} 37. e8=Q+
{[%clk 0:00:12.7]} 37... Rxe8 {[%clk 0:00:11.6]} 38. Nxe8 {[%clk 0:00:13.4]}
38... Ra1 {[%clk 0:00:10.1]} 39. Nd6 {[%clk 0:00:12.4]} 39... g5 {[%clk
0:00:09.9]} 40. Nf5 {[%clk 0:00:09.5]} 40... Rg1+ {[%clk 0:00:08.5]} 41. Kf3
{[%clk 0:00:10]} 41... g4+ {[%clk 0:00:06.8]} 42. Ke4 {[%clk 0:00:10.2]} 42...
Kf7 {[%clk 0:00:05.9]} 43. Nxd4 {[%clk 0:00:09.2]} 43... cxd4 {[%clk 0:00:06.8]}
44. Rf2+ {[%clk 0:00:09.5]} 44... Ke6 {[%clk 0:00:06.8]} 45. Rc6+ {[%clk
0:00:08.8]} 45... Kd7 {[%clk 0:00:07.5]} 46. Rh6 {[%clk 0:00:06.7]} 46... Re1+
{[%clk 0:00:08]} 47. Kd3 {[%clk 0:00:06.9]} 47... Re3+ {[%clk 0:00:07]} 48. Kd2
{[%clk 0:00:07.1]} 48... Rb3 {[%clk 0:00:05.9]} 49. Kc1 {[%clk 0:00:07.1]} 49...
e4 {[%clk 0:00:05.3]} 50. Rxh5 {[%clk 0:00:03.8]} 50... Rf3 {[%clk 0:00:05.9]}
51. Rxf3 {[%clk 0:00:03.8]} 51... gxf3 {[%clk 0:00:06.8]} 52. Kd2 {[%clk
0:00:03.6]} 52... e3+ {[%clk 0:00:07.3]} 53. Ke1 {[%clk 0:00:04.1]} 53... Ke6
{[%clk 0:00:06.9]} 54. Rh4 {[%clk 0:00:04.1]} 54... Ke5 {[%clk 0:00:06.8]} 55.
Rf4 {[%clk 0:00:04.4]} 55... d3 {[%clk 0:00:04.4]} 56. Rxf3 {[%clk 0:00:04.4]}
56... Kd4 {[%clk 0:00:05.3]} 57. Rxe3 {[%clk 0:00:04.9]} 57... Kxe3 {[%clk
0:00:05.8]} 58. Kd1 {[%clk 0:00:05.4]} 58... Ke4 {[%clk 0:00:05.9]} 59. h4
{[%clk 0:00:05.9]} 59... Kd4 {[%clk 0:00:06.8]} 60. b4 {[%clk 0:00:06.3]} 60...
Ke5 {[%clk 0:00:07.7]} 61. h5 {[%clk 0:00:06.8]} 61... Kd5 {[%clk 0:00:08.6]}
62. b5 {[%clk 0:00:07.4]} 62... Ke6 {[%clk 0:00:09.5]} 63. h6 {[%clk 0:00:08.1]}
63... Kf6 {[%clk 0:00:10.2]} 64. b6 {[%clk 0:00:08.6]} 64... Kg6 {[%clk
0:00:10.7]} 65. b7 {[%clk 0:00:09.5]} 65... Kxh6 {[%clk 0:00:11.6]} 66. b8=Q
{[%clk 0:00:10.3]} 66... Kg5 {[%clk 0:00:12.5]} 67. Qf8 {[%clk 0:00:10.7]} 67...
Kg4 {[%clk 0:00:13.4]} 68. Kd2 {[%clk 0:00:11.3]} 68... Kh3 {[%clk 0:00:14.2]}
69. Kxd3 {[%clk 0:00:12.2]} 69... Kg4 {[%clk 0:00:14.8]} 70. Ke3 {[%clk
0:00:12.7]} 70... Kh3 {[%clk 0:00:15.7]} 71. g4 {[%clk 0:00:11.9]} 71... Kg2
{[%clk 0:00:16.6]} 72. g5 {[%clk 0:00:11]} 72... Kh3 {[%clk 0:00:17.3]} 73. g6
{[%clk 0:00:11.4]} 73... Kh4 {[%clk 0:00:18.2]} 74. g7 {[%clk 0:00:11.9]} 74...
Kh5 {[%clk 0:00:19.1]} 75. g8=Q {[%clk 0:00:11.6]} 75... Kh4 {[%clk 0:00:19.8]}
76. Qh6# {[%clk 0:00:12.2]} 1-0